[Event "TUR-ch Veterans 2019"]
[Site "Belek"]
[Date "2019.01.22"]
[Round "3.3"]
[White "Yasin, Hur"]
[Black "Taskiran, Erol"]
[Result "1-0"]
[ECO "C00"]
[WhiteElo "2004"]
[BlackElo "1758"]
[Annotator "NA"]
[PlyCount "81"]
[EventDate "2019.01.20"]
[EventType "swiss"]
[EventCountry "TUR"]
[SourceTitle "playchess.com"]
[Source "ChessBase"]
[SourceQuality "1"]
[TimeControl "5400+30"]

1. e4 {[%emt 0:01:30]} e6 {[%emt 0:02:30]} 2. Nf3 {[%emt 0:00:30]} d5 {[%emt 0:00:30]} 3. e5 {[%emt 0:00:30]} c5 {[%emt 0:03:30]} 4. b4 {[%emt 0:00:30]} cxb4 {[%emt 0:05:30]} 5. a3 {[%emt 0:00:00]} b3 {[%emt 0:04:30]} 6. cxb3 {[%emt 0:01:00]} Ne7 {[%emt 0:02:30]} 7. d4 {[%emt 0:00:30]} Nbc6 {[%emt 0:02:30]} 8. Bd3 {[%emt 0:00:00]} Qa5+ {[%emt 0:05:30]} 9. Bd2 {[%emt 0:02:00]} Qb6 {[%emt 0:00:30]} 10. Bc3 {[%emt 0:03:30]} Ng6 {[%emt 0:01:30]} 11. h4 {[%emt 0:05:30]} Nf4 {[%emt 0:02:30]} 12. Bf1 {[%emt 0:00:30]} h5 {[%emt 0:05:30]} 13. g3 {[%emt 0:20:30]} Ng6 {[%emt 0:00:30]} 14. Nbd2 {[%emt 0:02:30]} Bd7 {[%emt 0:00:30]} 15. b4 {[%emt 0:00:30]} Rc8 {[%emt 0:01:30]} 16. Rc1 {[%emt 0:02:30]} Nge7 {[%emt 0:02:30]} 17. Nb3 {[%emt 0:00:30]} a6 {[%emt 0:02:30]} 18. Nc5 {[%emt 0:03:30]} Nf5 {[%emt 0:00:30]} 19. Bd3 {[%emt 0:00:30]} Bxc5 {[%emt 0:10:30]} 20. bxc5 {[%emt 0:00:30]} Qd8 {[%emt 0:00:30]} 21. Rb1 {[%emt 0:00:30]} Rb8 {[%emt 0:03:30]} 22. Rb6 {[%emt 0:01:30]} Nfe7 {[%emt 0:03:30]} 23. Ng5 {[%emt 0:06:30]} f6 {[%emt 0:05:30]} 24. exf6 {[%emt 0:02:30]} gxf6 {[%emt 0:00:30]} 25. Nh7 {[%emt 0:01:30]} Qc7 {[%emt 0:08:30]} 26. Qxh5+ {[%emt 0:09:30]} Kd8 {[%emt 0:00:30]} 27. Qf7 {[%emt 0:00:30]} Kc8 {[%emt 0:05:30]} 28. Nxf6 {[%emt 0:04:30]} Rd8 {[%emt 0:03:09]} 29. f4 {[%emt 0:00:30]} e5 {[%emt 0:01:05]} 30. fxe5 {[%emt 0:10:30]} Nxe5 {[%emt 0:00:34]} 31. Qxe7 {[%emt 0:01:10]} Nxd3+ {[%emt 0:01:36]} 32. Kd2 {[%emt 0:00:51]} Qxg3 {[%emt 0:00:44]} 33. Nxd7 {[%emt 0:08:31]} Rxd7 {[%emt 0:04:11]} 34. Qf8+ {[%emt 0:06:01]} Kc7 {[%emt 0:02:08]} 35. Qf1 {[%emt 0:00:23]} Nf2 {[%emt 0:01:26]} 36. Ba5 {[%emt 0:01:23]} Qf4+ {[%emt 0:02:26]} 37. Kc2 {[%emt 0:03:07]} Qe4+ {[%emt 0:00:28]} 38. Kb3 {[%emt 0:00:40]} Qe3+ {[%emt 0:01:06]} 39. Ka2 {[%emt 0:00:08]} Kc8 {[%emt 0:01:00]} 40. Rg1 {[%emt 0:00:50]} Qxd4 {[%emt 0:01:59]} 41. Rg8+ {[%emt 0:00:19]} 1-0

[Event "TUR-ch Veterans 2019"]
[Site "Belek"]
[Date "2019.01.22"]
[Round "3.4"]
[White "Bozkir, Dursun Murat"]
[Black "Tofan, Ibrahim"]
[Result "0-1"]
[ECO "B06"]
[WhiteElo "1684"]
[BlackElo "2070"]
[Annotator "NA"]
[PlyCount "80"]
[EventDate "2019.01.20"]
[EventType "swiss"]
[EventCountry "TUR"]
[SourceTitle "playchess.com"]
[Source "ChessBase"]
[SourceQuality "1"]
[TimeControl "5400+30"]

1. e4 {[%emt 0:00:30]} d6 {[%emt 0:01:30]} 2. d4 {[%emt 0:00:00]} g6 {[%emt 0:00:00]} 3. f4 {[%emt 0:00:00]} Bg7 {[%emt 0:00:00]} 4. c3 {[%emt 0:01:30]} Nf6 {[%emt 0:01:30]} 5. e5 {[%emt 0:00:30]} Nd5 {[%emt 0:01:30]} 6. Bc4 {[%emt 0:03:30]} Nb6 {[%emt 0:00:30]} 7. Bb3 {[%emt 0:00:30]} O-O {[%emt 0:00:30]} 8. Nf3 {[%emt 0:00:30]} c5 {[%emt 0:00:30]} 9. dxc5 {[%emt 0:02:30]} dxc5 {[%emt 0:00:30]} 10. Qxd8 {[%emt 0:00:00]} Rxd8 {[%emt 0:00:30]} 11. Be3 {[%emt 0:00:00]} Na6 {[%emt 0:03:30]} 12. Nbd2 {[%emt 0:02:30]} Nd5 {[%emt 0:00:30]} 13. Bxd5 {[%emt 0:12:30]} Rxd5 {[%emt 0:02:30]} 14. O-O-O {[%emt 0:13:30]} b6 {[%emt 0:09:30]} 15. Ne4 {[%emt 0:01:30]} Bb7 {[%emt 0:00:30]} 16. Rxd5 {[%emt 0:03:30]} Bxd5 {[%emt 0:00:30]} 17. Nfd2 {[%emt 0:00:00]} f5 {[%emt 0:01:30]} 18. exf6 {[%emt 0:00:00]} exf6 {[%emt 0:00:30]} 19. Re1 {[%emt 0:11:30]} f5 {[%emt 0:09:30]} 20. Ng5 {[%emt 0:02:30]} Bxg2 {[%emt 0:04:30]} 21. Bf2 {[%emt 0:01:30]} Nc7 {[%emt 0:04:30]} 22. Ngf3 {[%emt 0:10:30]} Nd5 {[%emt 0:02:30]} 23. Bg3 {[%emt 0:01:30]} Bxf3 {[%emt 0:09:30]} 24. Nxf3 {[%emt 0:00:00]} Bh6 {[%emt 0:00:30]} 25. Ng5 {[%emt 0:00:00]} Bxg5 {[%emt 0:00:30]} 26. fxg5 {[%emt 0:00:30]} f4 {[%emt 0:01:30]} 27. Bf2 {[%emt 0:00:30]} Rf8 {[%emt 0:06:30]} 28. a3 {[%emt 0:01:30]} f3 {[%emt 0:01:30]} 29. h4 {[%emt 0:06:30]} Nf4 {[%emt 0:02:30]} 30. Rd1 {[%emt 0:06:10]} Re8 {[%emt 0:02:30]} 31. Kc2 {[%emt 0:02:31]} c4 {[%emt 0:01:30]} 32. Rd2 {[%emt 0:04:24]} Nd3 {[%emt 0:01:30]} 33. Kd1 {[%emt 0:00:46]} b5 {[%emt 0:01:30]} 34. Bg3 {[%emt 0:01:12]} a5 {[%emt 0:00:30]} 35. b3 {[%emt 0:00:57]} a4 {[%emt 0:00:00]} 36. bxc4 {[%emt 0:00:57]} bxc4 {[%emt 0:00:00]} 37. Rh2 {[%emt 0:02:12]} Re3 {[%emt 0:05:30]} 38. Kd2 {[%emt 0:01:07]} Re4 {[%emt 0:00:00]} 39. Rh1 {[%emt 0:01:29]} Re2+ {[%emt 0:01:00]} 40. Kd1 {[%emt 0:00:08]} Ra2 {[%emt 0:00:30]} 0-1

[Event "TUR-ch Veterans 2019"]
[Site "Belek"]
[Date "2019.01.22"]
[Round "3.5"]
[White "Onem, Cem"]
[Black "Karadag, Eflatun Cem"]
[Result "1-0"]
[ECO "A87"]
[WhiteElo "1840"]
[BlackElo "1927"]
[Annotator "NA"]
[PlyCount "65"]
[EventDate "2019.01.20"]
[EventType "swiss"]
[EventCountry "TUR"]
[SourceTitle "playchess.com"]
[Source "ChessBase"]
[SourceQuality "1"]
[TimeControl "5400+30"]

1. d4 {[%emt 0:00:30]} f5 {[%emt 0:00:30]} 2. c4 {[%emt 0:00:00]} Nf6 {[%emt 0:00:30]} 3. g3 {[%emt 0:00:00]} g6 {[%emt 0:00:00]} 4. Bg2 {[%emt 0:00:00]} Bg7 {[%emt 0:00:00]} 5. Nf3 {[%emt 0:00:00]} O-O {[%emt 0:00:30]} 6. O-O {[%emt 0:00:30]} d6 {[%emt 0:00:30]} 7. Nc3 {[%emt 0:00:00]} Qe8 {[%emt 0:00:00]} 8. d5 {[%emt 0:06:00]} Na6 {[%emt 0:00:00]} 9. Nd4 {[%emt 0:01:30]} Bd7 {[%emt 0:13:30]} 10. b3 {[%emt 0:10:30]} c6 {[%emt 0:09:30]} 11. Rb1 {[%emt 0:03:30]} Nc7 {[%emt 0:00:30]} 12. Bb2 {[%emt 0:04:30]} c5 {[%emt 0:01:30]} 13. Nc2 {[%emt 0:08:30]} b5 {[%emt 0:11:30]} 14. cxb5 {[%emt 0:16:30]} Nxb5 {[%emt 0:00:30]} 15. b4 {[%emt 0:09:30]} Rc8 {[%emt 0:06:30]} 16. Nxb5 {[%emt 0:04:30]} Bxb5 {[%emt 0:14:30]} 17. bxc5 {[%emt 0:00:30]} dxc5 {[%emt 0:00:30]} 18. Bc3 {[%emt 0:08:30]} Qd7 {[%emt 0:07:30]} 19. Re1 {[%emt 0:05:36]} a6 {[%emt 0:10:30]} 20. h4 {[%emt 0:05:28]} Qd6 {[%emt 0:02:03]} 21. f4 {[%emt 0:04:13]} Ne4 {[%emt 0:03:12]} 22. Bxg7 {[%emt 0:00:16]} Kxg7 {[%emt 0:00:09]} 23. Bxe4 {[%emt 0:00:09]} fxe4 {[%emt 0:00:19]} 24. Ne3 {[%emt 0:00:18]} c4 {[%emt 0:00:41]} 25. Qd4+ {[%emt 0:01:24]} Qf6 {[%emt 0:04:56]} 26. Qxe4 {[%emt 0:01:07]} Rfd8 {[%emt 0:02:38]} 27. Rbc1 {[%emt 0:01:53]} c3 {[%emt 0:00:13]} 28. a4 {[%emt 0:00:51]} Bd7 {[%emt 0:01:34]} 29. Red1 {[%emt 0:00:44]} e6 {[%emt 0:00:56]} 30. Ng4 {[%emt 0:01:05]} Qf8 {[%emt 0:02:07]} 31. Qe5+ {[%emt 0:00:30]} Kf7 {[%emt 0:00:51]} 32. dxe6+ {[%emt 0:00:13]} Bxe6 {[%emt 0:00:18]} 33. Qf6+ {[%emt 0:00:08]} 1-0

[Event "TUR-ch Veterans 2019"]
[Site "Belek"]
[Date "2019.01.22"]
[Round "3.6"]
[White "Ozmen, Halil Nejat"]
[Black "Korkmaz, Turhan"]
[Result "0-1"]
[ECO "A45"]
[WhiteElo "1802"]
[BlackElo "1977"]
[Annotator "NA"]
[PlyCount "88"]
[EventDate "2019.01.20"]
[EventType "swiss"]
[EventCountry "TUR"]
[SourceTitle "playchess.com"]
[Source "ChessBase"]
[SourceQuality "1"]
[TimeControl "5400+30"]

1. d4 {[%emt 0:01:30]} Nf6 {[%emt 0:00:30]} 2. Bg5 {[%emt 0:00:30]} Ne4 {[%emt 0:02:30]} 3. Bh4 {[%emt 0:00:00]} c5 {[%emt 0:04:30]} 4. f3 {[%emt 0:02:00]} Nd6 {[%emt 0:00:30]} 5. dxc5 {[%emt 0:00:30]} Qa5+ {[%emt 0:00:30]} 6. Nd2 {[%emt 0:06:30]} Nc4 {[%emt 0:01:30]} 7. e4 {[%emt 0:08:30]} Nxb2 {[%emt 0:04:30]} 8. Qc1 {[%emt 0:01:30]} Na4 {[%emt 0:01:30]} 9. Qa3 {[%emt 0:00:30]} Nc6 {[%emt 0:09:30]} 10. Bf2 {[%emt 0:01:30]} e6 {[%emt 0:01:30]} 11. O-O-O {[%emt 0:05:30]} Nc3 {[%emt 0:05:30]} 12. Qxa5 {[%emt 0:00:30]} Nxa5 {[%emt 0:00:30]} 13. Re1 {[%emt 0:01:30]} b6 {[%emt 0:02:30]} 14. Nb3 {[%emt 0:01:30]} Nc6 {[%emt 0:03:30]} 15. Kd2 {[%emt 0:13:30]} Na4 {[%emt 0:07:30]} 16. Bb5 {[%emt 0:00:30]} Nxc5 {[%emt 0:00:30]} 17. Nxc5 {[%emt 0:00:30]} bxc5 {[%emt 0:00:30]} 18. Bxc6 {[%emt 0:00:30]} dxc6 {[%emt 0:00:30]} 19. Ne2 {[%emt 0:00:30]} Ba6 {[%emt 0:00:00]} 20. Nc3 {[%emt 0:00:30]} Rd8+ {[%emt 0:01:00]} 21. Kc1 {[%emt 0:02:30]} c4 {[%emt 0:02:30]} 22. Nb1 {[%emt 0:00:30]} Be7 {[%emt 0:01:30]} 23. Bxa7 {[%emt 0:02:30]} Ra8 {[%emt 0:00:30]} 24. Be3 {[%emt 0:00:30]} Bb5 {[%emt 0:01:30]} 25. a3 {[%emt 0:00:30]} O-O {[%emt 0:00:30]} 26. Rd1 {[%emt 0:02:30]} c3 {[%emt 0:01:30]} 27. Rd7 {[%emt 0:04:30]} Bxa3+ {[%emt 0:00:30]} 28. Kd1 {[%emt 0:00:00]} Bb2 {[%emt 0:00:30]} 29. Ke1 {[%emt 0:00:00]} Rfd8 {[%emt 0:01:30]} 30. Rxd8+ {[%emt 0:00:30]} Rxd8 {[%emt 0:00:30]} 31. Kf2 {[%emt 0:00:30]} Ba4 {[%emt 0:00:00]} 32. h3 {[%emt 0:02:30]} e5 {[%emt 0:03:00]} 33. Kg3 {[%emt 0:02:30]} Bxc2 {[%emt 0:01:30]} 34. Nxc3 {[%emt 0:04:30]} Bxc3 {[%emt 0:00:30]} 35. Rc1 {[%emt 0:00:30]} Rd3 {[%emt 0:01:30]} 36. Rxc2 {[%emt 0:00:00]} Rxe3 {[%emt 0:00:00]} 37. Ra2 {[%emt 0:01:00]} Be1+ {[%emt 0:00:00]} 38. Kg4 {[%emt 0:01:30]} g6 {[%emt 0:00:30]} 39. h4 {[%emt 0:00:30]} h5+ {[%emt 0:00:30]} 40. Kh3 {[%emt 0:02:30]} Bb4 {[%emt 0:01:30]} 41. Ra8+ {[%emt 0:00:30]} Kg7 {[%emt 0:00:30]} 42. Rc8 {[%emt 0:00:00]} c5 {[%emt 0:00:30]} 43. Kg3 {[%emt 0:00:00]} Be1+ {[%emt 0:00:30]} 44. Kh2 {[%emt 0:00:00]} Rc3 {[%emt 0:00:00]} 0-1

[Event "TUR-ch Veterans 2019"]
[Site "Belek"]
[Date "2019.01.22"]
[Round "3.7"]
[White "Marthedal, Anton Mehmet Yildiz"]
[Black "Cinar Corlulu, Nilufer"]
[Result "1-0"]
[ECO "A01"]
[WhiteElo "1885"]
[BlackElo "1970"]
[Annotator "NA"]
[PlyCount "49"]
[EventDate "2019.01.20"]
[EventType "swiss"]
[EventCountry "TUR"]
[SourceTitle "playchess.com"]
[Source "ChessBase"]
[SourceQuality "1"]
[TimeControl "5400+30"]

1. b3 {[%emt 0:00:30]} d5 {[%emt 0:08:30]} 2. Bb2 {[%emt 0:00:00]} Bg4 {[%emt 0:00:30]} 3. f3 {[%emt 0:03:00]} Bh5 {[%emt 0:00:30]} 4. e3 {[%emt 0:00:30]} e6 {[%emt 0:02:30]} 5. Na3 {[%emt 0:01:30]} Nd7 {[%emt 0:02:30]} 6. Be2 {[%emt 0:03:30]} c6 {[%emt 0:06:30]} 7. f4 {[%emt 0:00:30]} Bxe2 {[%emt 0:01:30]} 8. Qxe2 {[%emt 0:00:00]} Ngf6 {[%emt 0:01:30]} 9. Nf3 {[%emt 0:01:00]} Be7 {[%emt 0:04:30]} 10. c4 {[%emt 0:00:30]} O-O {[%emt 0:00:30]} 11. O-O {[%emt 0:01:30]} Qa5 {[%emt 0:05:30]} 12. Nc2 {[%emt 0:00:30]} dxc4 {[%emt 0:06:30]} 13. bxc4 {[%emt 0:02:30]} Qh5 {[%emt 0:02:30]} 14. Kh1 {[%emt 0:02:30]} Rad8 {[%emt 0:00:30]} 15. Rg1 {[%emt 0:01:30]} Nc5 {[%emt 0:01:30]} 16. g4 {[%emt 0:00:30]} Qg6 {[%emt 0:03:30]} 17. f5 {[%emt 0:04:30]} exf5 {[%emt 0:03:30]} 18. Nh4 {[%emt 0:00:30]} Qg5 {[%emt 0:03:30]} 19. Nxf5 {[%emt 0:00:30]} Rfe8 {[%emt 0:04:30]} 20. Ncd4 {[%emt 0:00:30]} Nce4 {[%emt 0:06:30]} 21. d3 {[%emt 0:02:30]} Rxd4 {[%emt 0:05:30]} 22. exd4 {[%emt 0:01:30]} Nd6 {[%emt 0:01:30]} 23. h4 {[%emt 0:00:30]} Qg6 {[%emt 0:02:30]} 24. h5 {[%emt 0:01:30]} Nxh5 {[%emt 0:01:30]} 25. Nxe7+ {[%emt 0:07:30]} 1-0

[Event "TUR-ch Veterans 2019"]
[Site "Belek"]
[Date "2019.01.22"]
[Round "3.8"]
[White "Subasi, Zeki"]
[Black "Sedef, Emin"]
[Result "1-0"]
[ECO "C01"]
[WhiteElo "1707"]
[BlackElo "1632"]
[Annotator "NA"]
[PlyCount "117"]
[EventDate "2019.01.20"]
[EventType "swiss"]
[EventCountry "TUR"]
[SourceTitle "playchess.com"]
[Source "ChessBase"]
[SourceQuality "1"]
[TimeControl "5400+30"]

1. e4 {[%emt 0:00:30]} e6 {[%emt 0:00:30]} 2. Nf3 {[%emt 0:00:00]} d5 {[%emt 0:00:30]} 3. exd5 {[%emt 0:00:00]} exd5 {[%emt 0:00:30]} 4. d4 {[%emt 0:00:30]} Nf6 {[%emt 0:00:00]} 5. Bd3 {[%emt 0:00:30]} Bd6 {[%emt 0:00:00]} 6. O-O {[%emt 0:00:30]} O-O {[%emt 0:00:30]} 7. h3 {[%emt 0:00:30]} h6 {[%emt 0:01:30]} 8. Re1 {[%emt 0:02:30]} Nc6 {[%emt 0:02:30]} 9. c3 {[%emt 0:00:30]} Bd7 {[%emt 0:00:30]} 10. Nbd2 {[%emt 0:00:30]} a6 {[%emt 0:02:30]} 11. a4 {[%emt 0:00:30]} Ne7 {[%emt 0:00:30]} 12. Nf1 {[%emt 0:00:30]} Re8 {[%emt 0:06:30]} 13. Bd2 {[%emt 0:03:30]} Ng6 {[%emt 0:01:30]} 14. Qc2 {[%emt 0:00:30]} Nf4 {[%emt 0:01:30]} 15. Bxf4 {[%emt 0:01:30]} Bxf4 {[%emt 0:00:00]} 16. Ne5 {[%emt 0:01:30]} Be6 {[%emt 0:07:00]} 17. Qd1 {[%emt 0:02:30]} c5 {[%emt 0:02:30]} 18. Qf3 {[%emt 0:01:30]} Bxe5 {[%emt 0:00:30]} 19. dxe5 {[%emt 0:09:30]} Nd7 {[%emt 0:00:30]} 20. Bc2 {[%emt 0:01:30]} c4 {[%emt 0:01:30]} 21. b3 {[%emt 0:01:30]} b5 {[%emt 0:00:30]} 22. b4 {[%emt 0:01:30]} Qg5 {[%emt 0:01:30]} 23. Qe3 {[%emt 0:01:30]} Qxe3 {[%emt 0:01:30]} 24. Rxe3 {[%emt 0:00:30]} Nb6 {[%emt 0:01:30]} 25. a5 {[%emt 0:00:30]} d4 {[%emt 0:04:30]} 26. cxd4 {[%emt 0:01:30]} Nd5 {[%emt 0:00:30]} 27. Be4 {[%emt 0:00:30]} Nxe3 {[%emt 0:01:30]} 28. fxe3 {[%emt 0:05:30]} Rad8 {[%emt 0:00:30]} 29. Bb7 {[%emt 0:01:30]} Bc8 {[%emt 0:00:30]} 30. Bf3 {[%emt 0:02:30]} Re7 {[%emt 0:00:30]} 31. Ng3 {[%emt 0:02:30]} f5 {[%emt 0:00:30]} 32. Ne2 {[%emt 0:02:30]} Bb7 {[%emt 0:00:30]} 33. Bxb7 {[%emt 0:01:30]} Rxb7 {[%emt 0:00:30]} 34. Rc1 {[%emt 0:01:30]} Kf7 {[%emt 0:00:30]} 35. Rf1 {[%emt 0:00:30]} Ke6 {[%emt 0:01:30]} 36. Rd1 {[%emt 0:00:30]} g5 {[%emt 0:00:30]} 37. g3 {[%emt 0:00:30]} Rc7 {[%emt 0:01:30]} 38. Nc3 {[%emt 0:00:30]} Rcd7 {[%emt 0:01:30]} 39. Kf2 {[%emt 0:02:30]} f4 {[%emt 0:00:30]} 40. gxf4 {[%emt 0:01:30]} gxf4 {[%emt 0:00:30]} 41. Ne4 {[%emt 0:00:00]} fxe3+ {[%emt 0:00:30]} 42. Kxe3 {[%emt 0:00:00]} Rg7 {[%emt 0:09:30]} 43. Rf1 {[%emt 0:03:30]} Rg6 {[%emt 0:00:30]} 44. Nc5+ {[%emt 0:10:30]} Kd5 {[%emt 0:04:30]} 45. Ne4 {[%emt 0:02:30]} Rc8 {[%emt 0:06:30]} 46. Nc3+ {[%emt 0:02:30]} Ke6 {[%emt 0:00:30]} 47. Ke4 {[%emt 0:00:30]} Rcg8 {[%emt 0:03:30]} 48. d5+ {[%emt 0:02:30]} Ke7 {[%emt 0:00:00]} 49. d6+ {[%emt 0:01:30]} Ke6 {[%emt 0:02:00]} 50. Ne2 {[%emt 0:00:30]} c3 {[%emt 0:04:30]} 51. Nd4+ {[%emt 0:04:30]} Kd7 {[%emt 0:00:30]} 52. Rf7+ {[%emt 0:00:30]} Ke8 {[%emt 0:00:30]} 53. Rc7 {[%emt 0:00:30]} R8g7 {[%emt 0:01:30]} 54. Rxc3 {[%emt 0:00:30]} Rg3 {[%emt 0:00:30]} 55. Rc6 {[%emt 0:01:30]} Rxh3 {[%emt 0:01:30]} 56. Rc8+ {[%emt 0:01:30]} Kf7 {[%emt 0:00:00]} 57. Rc7+ {[%emt 0:00:30]} Kg8 {[%emt 0:00:00]} 58. Rxg7+ {[%emt 0:00:00]} Kxg7 {[%emt 0:00:30]} 59. d7 {[%emt 0:00:00]} 1-0

[Event "TUR-ch Veterans 2019"]
[Site "Belek"]
[Date "2019.01.22"]
[Round "3.9"]
[White "Hatipoglu, Metin"]
[Black "Sezgun, Yakup"]
[Result "0-1"]
[ECO "B14"]
[WhiteElo "1680"]
[BlackElo "1757"]
[Annotator "NA"]
[PlyCount "90"]
[EventDate "2019.01.20"]
[EventType "swiss"]
[EventCountry "TUR"]
[SourceTitle "playchess.com"]
[Source "ChessBase"]
[SourceQuality "1"]
[TimeControl "5400+30"]

1. e4 {[%emt 0:00:30]} c6 {[%emt 0:01:30]} 2. d4 {[%emt 0:00:00]} d5 {[%emt 0:00:30]} 3. exd5 {[%emt 0:00:00]} cxd5 {[%emt 0:00:00]} 4. c4 {[%emt 0:00:30]} e6 {[%emt 0:01:00]} 5. Nf3 {[%emt 0:00:30]} Nc6 {[%emt 0:00:00]} 6. Nc3 {[%emt 0:00:30]} Nf6 {[%emt 0:00:00]} 7. Be2 {[%emt 0:00:30]} Be7 {[%emt 0:01:30]} 8. O-O {[%emt 0:00:30]} O-O {[%emt 0:00:00]} 9. Re1 {[%emt 0:01:30]} b6 {[%emt 0:01:00]} 10. h3 {[%emt 0:04:30]} Bb7 {[%emt 0:01:30]} 11. Bf4 {[%emt 0:02:30]} Rc8 {[%emt 0:02:30]} 12. cxd5 {[%emt 0:15:30]} Nxd5 {[%emt 0:01:30]} 13. Bg3 {[%emt 0:04:30]} Nxc3 {[%emt 0:14:30]} 14. bxc3 {[%emt 0:00:30]} Bf6 {[%emt 0:01:30]} 15. Qa4 {[%emt 0:01:30]} Qd7 {[%emt 0:08:30]} 16. Ba6 {[%emt 0:05:30]} Rfd8 {[%emt 0:04:30]} 17. Bxb7 {[%emt 0:06:30]} Qxb7 {[%emt 0:00:30]} 18. Rac1 {[%emt 0:06:30]} Qd7 {[%emt 0:07:30]} 19. Qd1 {[%emt 0:05:30]} Be7 {[%emt 0:05:30]} 20. Qe2 {[%emt 0:03:30]} Bd6 {[%emt 0:00:30]} 21. Bh4 {[%emt 0:01:30]} Re8 {[%emt 0:01:30]} 22. Ng5 {[%emt 0:02:30]} h6 {[%emt 0:08:30]} 23. Ne4 {[%emt 0:00:30]} Be7 {[%emt 0:02:30]} 24. Bg3 {[%emt 0:07:30]} Na5 {[%emt 0:02:30]} 25. Bf4 {[%emt 0:05:30]} Nc4 {[%emt 0:06:30]} 26. g4 {[%emt 0:02:30]} Nd6 {[%emt 0:04:30]} 27. Ng3 {[%emt 0:01:30]} Qd8 {[%emt 0:02:30]} 28. Nh5 {[%emt 0:00:30]} g6 {[%emt 0:06:20]} 29. Ng3 {[%emt 0:03:55]} Bg5 {[%emt 0:00:58]} 30. Bxg5 {[%emt 0:04:19]} Qxg5 {[%emt 0:00:16]} 31. Qe3 {[%emt 0:03:51]} Qxe3 {[%emt 0:00:52]} 32. fxe3 {[%emt 0:00:45]} Rc4 {[%emt 0:00:33]} 33. e4 {[%emt 0:00:40]} Rec8 {[%emt 0:00:36]} 34. e5 {[%emt 0:02:32]} Nb5 {[%emt 0:00:20]} 35. Ne4 {[%emt 0:00:39]} Nxd4 {[%emt 0:05:07]} 36. Nd6 {[%emt 0:00:31]} Nf3+ {[%emt 0:00:12]} 37. Kf2 {[%emt 0:00:30]} Nxe1 {[%emt 0:00:11]} 38. Rxe1 {[%emt 0:03:55]} Rxc3 {[%emt 0:00:24]} 39. Nxc8 {[%emt 0:00:19]} Rxc8 {[%emt 0:00:07]} 40. Re2 {[%emt 0:00:28]} Kf8 {[%emt 0:00:35]} 41. Kg3 {[%emt 0:00:39]} Rc3+ {[%emt 0:00:56]} 42. Kg2 {[%emt 0:00:24]} b5 {[%emt 0:01:35]} 43. Rb2 {[%emt 0:00:52]} a6 {[%emt 0:00:32]} 44. Rd2 {[%emt 0:00:38]} b4 {[%emt 0:00:56]} 45. Rd8+ {[%emt 0:00:31]} Kg7 {[%emt 0:00:25]} 0-1

[Event "TUR-ch Veterans 2019"]
[Site "Belek"]
[Date "2019.01.22"]
[Round "3.10"]
[White "Cetinkaya, Vedat Ali"]
[Black "Unver, Ibrahim Kaya"]
[Result "1-0"]
[ECO "E50"]
[WhiteElo "2056"]
[BlackElo "1379"]
[Annotator "NA"]
[PlyCount "39"]
[EventDate "2019.01.20"]
[EventType "swiss"]
[EventCountry "TUR"]
[SourceTitle "playchess.com"]
[Source "ChessBase"]
[SourceQuality "1"]
[TimeControl "5400+30"]

1. d4 {[%emt 0:00:30]} Nf6 {[%emt 0:00:30]} 2. c4 {[%emt 0:00:00]} e6 {[%emt 0:00:30]} 3. Nc3 {[%emt 0:00:00]} Bb4 {[%emt 0:00:30]} 4. e3 {[%emt 0:00:30]} c5 {[%emt 0:00:00]} 5. Nf3 {[%emt 0:00:00]} Nc6 {[%emt 0:01:00]} 6. Bd3 {[%emt 0:00:00]} cxd4 {[%emt 0:00:30]} 7. exd4 {[%emt 0:00:30]} O-O {[%emt 0:01:30]} 8. O-O {[%emt 0:00:30]} Bxc3 {[%emt 0:00:30]} 9. bxc3 {[%emt 0:00:30]} h6 {[%emt 0:00:30]} 10. Ba3 {[%emt 0:02:30]} d6 {[%emt 0:07:30]} 11. Qd2 {[%emt 0:00:30]} Re8 {[%emt 0:01:30]} 12. Rfe1 {[%emt 0:00:30]} b6 {[%emt 0:00:30]} 13. Rad1 {[%emt 0:01:30]} Bb7 {[%emt 0:04:30]} 14. Qf4 {[%emt 0:08:30]} d5 {[%emt 0:01:30]} 15. Ne5 {[%emt 0:00:00]} Qc7 {[%emt 0:05:30]} 16. Re3 {[%emt 0:06:00]} Na5 {[%emt 0:03:30]} 17. Rg3 {[%emt 0:02:30]} Ne4 {[%emt 0:07:30]} 18. Qxh6 {[%emt 0:05:30]} f5 {[%emt 0:07:30]} 19. Bxe4 {[%emt 0:00:30]} dxe4 {[%emt 0:02:30]} 20. Bd6 {[%emt 0:00:30]} 1-0